Cogmind - Beta 10.2 @@@ ROGUE MODE // 2020.12.26 @ 18:17:31 Player: CrossedViper Result: Destroyed by DAS Turret with DAS Cannon Performance ------------- Evolutions (0) 0 Regions Visited (3) 600 Robots Destroyed (17) 85 Value Destroyed (369) 369 Prototype IDs (23) 460 Alien Tech Used (0) 0 Bonus (63) 63 TOTAL SCORE: 1577 Bonus ------- Aligned with FarCom 300 Friendly Fire -237 Cogmind --------- Core Integrity 0/250 Matter 250/300 Energy 100/100 System Corruption 1% Temperature Cool (187) Movement Hovering (146) Ox1 Location -10/Exiles Parts ------- > --- POWER (1) -------- (None) > --- PROPULSION (2) --- Combat Airjet Combat Airjet > --- UTILITY (2) ------ High-capacity Storage Unit Light Armor Plating > --- WEAPON (2) ------- Firepult > --- INVENTORY (12) --- Improved Ion Engine Large Storage Unit Large Storage Unit Light Armor Plating Light Armor Plating Rocket Launcher Rocket Launcher Field Lobotomy Kit Peak State ------------ > --- POWER ------------ Improved Ion Engine > --- PROPULSION ------- Combat Airjet Combat Airjet > --- UTILITY ---------- High-capacity Storage Unit Light Armor Plating > --- WEAPON ----------- Firepult > --- INVENTORY -------- Improved Ion Engine Large Storage Unit Large Storage Unit Light Armor Plating Light Armor Plating Light Armor Plating Rocket Launcher Rocket Launcher Field Lobotomy Kit [Rating: 36] Favorites ----------- Power Improved Ion Engine Engine Improved Ion Engine Propulsion Light Treads Treads Light Treads Leg Aluminum Leg Hover Unit Combat Airjet Utility Large Storage Unit Storage Large Storage Unit Protection Light Armor Plating Weapon Assault Rifle Energy Cannon Firepult Ballistic Gun Assault Rifle Ballistic Cannon Light Cannon Launcher Grenade Launcher Build | -11 -10 -10 -10 ------- Run | Scr Mat Min Exi Slots Evolved . | . . . . Power . | . . . . Propulsion . | . . . . Utility . | . . . . Weapon . | . . . . Parts Attached 20 | . 10 3 7 Power 2 | . 1 . 1 Engine 2 | . 1 . 1 Core . | . . . . Reactor . | . . . . Propulsion 9 | . 5 2 2 Treads 4 | . 2 2 . Leg 3 | . 3 . . Wheel . | . . . . Hover 2 | . . . 2 Flight . | . . . . Utility 5 | . 2 . 3 Device . | . . . . Storage 3 | . 2 . 1 Processor . | . . . . Hackware . | . . . . Protection 2 | . . . 2 Artifact . | . . . . Weapon 4 | . 2 1 1 Energy Gun . | . . . . Energy Cannon 1 | . . . 1 Ballistic Gun 1 | . 1 . . Ballistic Cannon 1 | . . 1 . Launcher 1 | . 1 . . Special Weapon . | . . . . Impact Weapon . | . . . . Slashing Weapon . | . . . . Piercing Weapon . | . . . . Special Melee Weapon . | . . . . Unidentified Prototypes . | . . . . Parts Lost 9 | . . 5 4 Power 1 | . . . 1 Propulsion 4 | . . 2 2 Utility 1 | . . . 1 Weapon 3 | . . 3 . Highest Loss Streak 4 | . . 3 4 Average Slot Usage (%) 89 | . 98 77 75 Engine 14 | . 14 14 14 Treads 19 | . 14 28 27 Leg 7 | . 13 . . Storage 26 | . 26 28 26 Energy Cannon 1 | . . . 5 Ballistic Gun 16 | . 27 1 . Naked Turns . | . . . . Heaviest Build 64 | 12 42 42 64 Greatest Support 44 | 20 40 40 44 Greatest Overweight (x) 1 | . 1 1 1 Average Overweight (x) . | . . . . Largest Inventory Capacity 16 | . 16 16 16 Average Capacity 14 | . 14 16 15 Most Carried 16 | . 16 16 16 Average Carried 13 | . 12 14 15 Final Capacity 16 | 6 16 16 12 Final Carried 16 | 6 16 15 8 Class Distribution -------------------- 100% | Mutant Dominant Class ---------------- Mutant | -10/Materials Mutant | -10/Mines Mutant | -10/Exiles Resources | -11 -10 -10 -10 ----------- Run | Scr Mat Min Exi Matter Collected 565 | 200 290 75 . Remotely . | . . . . Salvage Created 535 | . 479 56 . Parts 36 | . 33 3 . Haulers Intercepted 2 | . 2 . . Recyclers Shooed 3 | . 3 . . Parts Field Recycled . | . . . . Retrieved Matter . | . . . . Parts Self-Destructed . | . . . . Prevented . | . . . . Kills | -11 -10 -10 -10 ------- Run | Scr Mat Min Exi Combat Hostiles Destroyed 11 | . 9 2 . Guns 7 | . 7 . . Cannons 2 | . . 2 . AOE 2 | . 2 . . Classes Destroyed 6 | . 6 . . Worker 2 | . 2 . . Hauler 2 | . 2 . . Recycler 1 | . 1 . . Watcher 1 | . 1 . . Swarmer 3 | . 3 . . Grunt 8 | . 6 2 . Best Kill Streak 4 | . 4 2 . Combat Bots Only 3 | . 3 2 . Max Kills in Single Turn 2 | . 2 1 . Gunslinging . | . . . . Exploded 2 | . 2 . . Melee . | . . . . Uniques/NPCs Destroyed . | . . . . Combat | -11 -10 -10 -10 -------- Run | Scr Mat Min Exi Damage Taken 1939 | . 468 864 607 Core 279 | . 61 76 142 Absorbed by Shields . | . . . . Core Remaining (%) 100 | 100 . . . Volleys Fired 56 | . 43 11 2 Largest 2 | . 2 2 1 Hottest 250 | . 40 55 250 Shots Fired 103 | . 83 18 2 Gun 91 | . 80 11 . Cannon 9 | . . 7 2 Launcher 3 | . 3 . . Special . | . . . . Kinetic 98 | . 80 18 . Thermal 2 | . . . 2 Explosive 3 | . 3 . . Electromagnetic . | . . . . Robot Hit Streak 14 | . 11 11 14 Robot Miss Streak 3 | . 3 1 1 Penetration Max . | . . . . Secondary Targets 1 | . 1 . . Max Gunslinging Chain 1 | . 1 . . Shots Hit Robots 68 | . 50 16 2 Core Hits 36 | . 29 4 3 Critical Hits 2 | . 2 . . Critical Kills 1 | . 1 . . Critical Parts Destroyed 1 | . 1 . . Melee Attacks . | . . . . Impact . | . . . . Slashing . | . . . . Piercing . | . . . . Sneak Attacks . | . . . . Combat Hostiles . | . . . . Follow-up Attacks . | . . . . Damage Inflicted 1229 | . 859 227 143 Guns 721 | . 619 102 . Cannons 183 | . . 124 59 Explosions 324 | . 240 . 84 Melee . | . . . . Ramming 1 | . . 1 . Kinetic 845 | . 619 226 . Thermal 143 | . . . 143 Explosive 240 | . 240 . . Electromagnetic . | . . . . Impact . | . . . . Slashing . | . . . . Piercing . | . . . . Highest Corruption 1 | . . . 1 Average Corruption 1 | . . . 1 Corruption Purged . | . . . . Overload Shots . | . . . . Overflow Damage 50 | . 32 . 18 Projectiles . | . . . . Explosions 50 | . 32 . 18 Melee . | . . . . Knockbacks 1 | . . 1 . Impact 1 | . . 1 . Kinetic . | . . . . Secondary . | . . . . Self-Inflicted Damage . | . . . . Shots . | . . . . Rammed 1 | . . 1 . Targets Rammed 1 | . . 1 . Kicked . | . . . . Crushed . | . . . . Highest Temperature 436 | . 30 63 436 Average Temperature 68 | . 9 31 296 Received Heat Transfer 372 | . 207 165 . Effects 2 | . . . 2 Shutdowns 1 | . . . 1 Interference 1 | . . . 1 Siege Activations . | . . . . Robots Corrupted . | . . . . Combat Hostiles . | . . . . Parts Fried . | . . . . Impact Corruptions . | . . . . Robots Melted . | . . . . Combat Hostiles . | . . . . Parts Melted 1 | . . . 1 Heat Transferred 640 | . . . 640 Parts Sabotaged . | . . . . Parts Stolen . | . . . . Parts Stripped . | . . . . Power Chain Reactions . | . . . . Missiles Intercepted . | . . . . Alert | -11 -10 -10 -10 ------- Run | Scr Mat Min Exi Peak Influence 177 | . 177 40 . Initial 5 | . . 5 . Average 55 | . 65 19 . Maximum Alert Level . | . . . . Low Security (%) 100 | . 100 100 . Level 1 . | . . . . Level 2 . | . . . . Level 3 . | . . . . Level 4 . | . . . . Level 5 . | . . . . High Security . | . . . . Max Security . | . . . . Squads Dispatched 2 | . 2 . . Investigation 1 | . 1 . . Extermination . | . . . . Reinforcement 1 | . 1 . . Assault . | . . . . Garrison . | . . . . Intercept . | . . . . Construction Impeded . | . . . . Haulers Reinforced . | . . . . Stealth | -11 -10 -10 -10 --------- Run | Scr Mat Min Exi Distress Signals 1 | . 1 . . Communications Jammed . | . . . . Distress Signals . | . . . . Times Spotted 35 | . 19 4 12 Peak Tracking Total 11 | . 4 2 11 Tactical Retreats 1 | . . . 1 Traps | -11 -10 -10 -10 ------- Run | Scr Mat Min Exi Traps Triggered 2 | . 2 . . Indirectly . | . . . . Trap Hack Attempts . | . . . . Triggered . | . . . . Disarmed . | . . . . Reprogrammed . | . . . . Reused . | . . . . Traps Extracted . | . . . . Installed . | . . . . Triggered . | . . . . Machines | -11 -10 -10 -10 ---------- Run | Scr Mat Min Exi Machines Disabled 2 | . . . 2 Max in Single Turn 1 | . . . 1 Machines Sabotaged . | . . . . Garrisons Compromised . | . . . . Overloaded Fab Kills . | . . . . Fab Network Shutdowns . | . . . . Hacking | -11 -10 -10 -10 --------- Run | Scr Mat Min Exi Machines Accessed 5 | . 3 . 2 Terminals 3 | . 3 . . Fabricators . | . . . . Repair Stations . | . . . . Recycling Units . | . . . . Scanalyzers . | . . . . Garrison Access . | . . . . Total Hacks 7 | . 5 . 2 Successful 4 | . 2 . 2 Failed 3 | . 3 . . Catastrophic 1 | . 1 . . Database Lockouts . | . . . . Manual 6 | . 5 . 1 Terminals 5 | . 5 . . Fabricators . | . . . . Repair Stations . | . . . . Recycling Units . | . . . . Scanalyzers . | . . . . Garrison Access . | . . . . Terminal Hacks 2 | . . . 2 Record 1 | . . . 1 EX-Prototype ID Bank 1 | . . . 1 Fabricator Hacks . | . . . . Repair Station Hacks . | . . . . Recycling Unit Hacks . | . . . . Scanalyzer . | . . . . Garrison Access Hacks . | . . . . Unauthorized Hacks 2 | . 2 . . Terminals 2 | . 2 . . Track 2 | . 2 . . Fabricators . | . . . . Repair Stations . | . . . . Recycling Units . | . . . . Scanalyzers . | . . . . Garrison Access . | . . . . Data Cores Recovered . | . . . . Used . | . . . . Hacking Detections 3 | . 3 . . Full Trace Events . | . . . . Feedback Events . | . . . . Feedback Blocked . | . . . . Robot Schematics Acquired . | . . . . Robots Built . | . . . . Matter . | . . . . Time . | . . . . Total Robot Build Rating . | . . . . Part Schematics Acquired . | . . . . Parts Built . | . . . . Matter . | . . . . Time . | . . . . Total Part Build Rating . | . . . . Parts Repaired . | . . . . Time . | . . . . Parts Recycled . | . . . . Recycled Matter . | . . . . Retrieved Matter . | . . . . Retrieved Components . | . . . . Parts Scanalyzed . | . . . . Part Schematics Acquired . | . . . . Parts Damaged . | . . . . Bothacking | -11 -10 -10 -10 ------------ Run | Scr Mat Min Exi Used RIF Installer . | . . . . Robots Hacked . | . . . . Non-combat . | . . . . Combat . | . . . . Robot Hacks Applied . | . . . . Relay Couplers Released . | . . . . Robots Rewired . | . . . . Allies Hacked . | . . . . Hacks Repelled . | . . . . Allies | -11 -10 -10 -10 -------- Run | Scr Mat Min Exi Total Allies . | . . . . Largest Group . | . . . . Highest-Rated Group . | . . . . Highest-Rated Ally . | . . . . Total Orders . | . . . . Ally Attacks . | . . . . Total Damage . | . . . . Kills . | . . . . Allies Corrupted . | . . . . Allies Melted . | . . . . Intel | -11 -10 -10 -10 ------- Run | Scr Mat Min Exi Robot Analysis Total . | . . . . Derelict Logs Recovered . | . . . . Drone Launches . | . . . . Drone Recoveries . | . . . . Exploration | -11 -10 -10 -10 ------------- Run | Scr Mat Min Exi Turns Passed 2066 | . 1242 338 486 Spaces Moved 1133 | 1 687 163 282 Core . | . . . . Treads 795 | . 358 163 274 Legs 330 | 1 329 . . Wheels . | . . . . Hover 8 | . . . 8 Flight . | . . . . Fastest Speed 120 | 120 120 160 146 Average Speed 160 | 120 156 167 165 Slowest Speed 180 | 120 180 180 180 Overloaded Moves . | . . . . Propulsion Burnouts . | . . . . Robots Hopped . | . . . . Cave-ins Triggered . | . . . . Exploration Rate (%) 45 | 2 82 39 58 Regions Visited 3 Branch Regions 2 Pre-discovered Areas 1 | . . . 1 Known Exits Taken . | . . . . Unknown Exits Taken 3 | 1 1 1 . Scrap Searched . | . . . . Spaces Dug . | . . . . Terrain Destroyed 24 | . 18 . 6 Melee . | . . . . Projectile . | . . . . AOE 24 | . 18 . 6 Terrain Rammed . | . . . . Walls Destroyed . | . . . . Machines Disabled . | . . . . Actions | -11 -10 -10 -10 --------- Run | Scr Mat Min Exi Total 1292 | . 783 210 299 Wait 39 | . 8 31 . Move 1130 | . 686 162 282 Hop . | . . . . Pick Up 27 | . 21 2 4 Fast Attach 3 | . 1 . 2 Attach 8 | . 2 3 3 Detach . | . . . . Swap 9 | . 7 . 2 Drop 19 | . 15 . 4 Fire 56 | . 43 11 2 Melee . | . . . . Ram . | . . . . Kick . | . . . . Crush 1 | . . 1 . Escape Stasis . | . . . . Rewire . | . . . . Trap . | . . . . Miscellaneous . | . . . . Route ------- -11/Scrapyard -10/Materials (discovered 4 exits: [*Mat x3] / [*Min]) -10/Mines -10/Exiles History --------- Turn | Location | Event 1 | -11/Scrapyard | Discovered new exit (range 0) 1 | -11/Scrapyard | Entered Materials 265 | -10/Materials | Discovered new exit (range 3) 302 | -10/Materials | Build established: Mutant 342 | -10/Materials | Discovered new exit (range 16) 1180 | -10/Materials | Discovered new exit (range 16) 1234 | -10/Materials | Discovered new exit (range 6) 1243 | -10/Materials | Entered Mines 1306 | -10/Mines | Assembled infested the area 1349 | -10/Mines | Met a Derelict bent on vengeance 1379 | -10/Mines | Met 8R-AWN 1392 | -10/Mines | Core integrity fell below 50% 1414 | -10/Mines | Lost 3 parts (2n1w) 1574 | -10/Mines | Discovered new exit (range 5) 1581 | -10/Mines | Entered Exiles 1627 | -10/Exiles | Welcomed by 8R-AWN 1650 | -10/Exiles | Met EX-HEX 1720 | -10/Exiles | Learned location of Zion (-6) 1746 | -10/Exiles | Met EX-BIN 1824 | -10/Exiles | Aligned with FarCom system 1826 | -10/Exiles | Given EX-Vault access code 1863 | -10/Exiles | Opened EX-Vault 1876 | -10/Exiles | Found Field Lobotomy Kit 1886 | -10/Exiles | Found Firepult 1926 | -10/Exiles | Warned to stay clear of 0b10 Research branches 1987 | -10/Exiles | Met EX-DEC 2050 | -10/Exiles | Attacked by the Exiles 2054 | -10/Exiles | Core integrity fell below 20% 2067 | -10/Exiles | Destroyed by DAS Turret with DAS Cannon Last Messages --------------- 02052_ EX-DEC deploys DAS Turret. 02052_ Lgt. Treads destroyed. 02052_ Knocked back. 02053_ EX-DEC heat damages EX Chip 1, EX Chip 1, EX Chip 1, EX Chip 2. 02053_ Knocked back. 02054_ EX-DEC heat damages EX Chip 1, Adv. Core Analyzer. 02055_ Knocked back. 02056_ Power failure, Imp. Ion Engine shutdown. 02056_ EX-DEC heat spikes uncontrollably. 02057_ Knocked back. 02058_ EX-DEC heat short circuits Imp. Target Analyzer. 02059_ EX-DEC heat short circuits Cmb. Antigrav System. 02059_ EX-BIN: "I just want to science!" 02059_ Lgt. Armor Plating destroyed. 02059_ Knocked back. 02062_ Overheating: System interference. 02062_ Firepult temporarily disabled. 02063_ Knocked back. 02065_ Imp. Ion Engine destroyed. 02065_ Knocked back. Map ----- +----------------------------------------------------+ | ??????????????????????????????????#""X" #? | | ??????????????????????????????????#" #? | | ??????????????????????????????????#" ## #? | | ??????????????????????????????????#""""""?# #? | | ???????????????????????????????????#"###??# #? | | ??????????????????????????????????????????# #? | | ??????????????????????????????????????????# #? | | ?????????????????????????????????????????## ## | | ?????????????????????????????????????????#" | | ?????????????????????????????????????????#" | | ?????????????????????????????????????????#" | | ?????????????????????????????????????????#" | | ????????????????????????????#####????????#" | | ???????????????????????????? """#???????#" | | ???????????????????????????"" """#???????## | | ??????????????????????????#"" #????????# | | ??????????????????????????#"" #????????#" * | | ??????????????????????????#"" "#????????#" | | ??????????????????????????? ""?????????#" " | | ????????????????????????????" "?????????##" ## | | ???????????? ????????????# #????????##"" #? | | ???????????" #####????### ###?######"" #? | | ???????????" """#####X# #"###""""""" ## | | ???????????" """""" " "" # | | ????????????# "" """ " | | ?????????????# @ " " | | ??????????????## | | ???????????????### | | ?????????????????## | | ??????????????????## | | ???????????????????##" | | ????????????????????#""" """""" | | ???????????????????##" ######""" | | ???????????????????#" ""##????#####" | | ??????????????????## a """##?????????## | | ??????????????????# c a"""##???????????# | | ??????????????????# ]a""#????????????# | | ??????????????????# ! ###???????????" | | ?????????????????# #??????????? | | ?????????????????# t ""?? | | ????????????????# | | ????????????????# ## | | ????????????????#??## | | ????????????????????# " "" | | ????????????????????#"""" ""## ##"" | | ????????????????????#"" ""###?? #??? | | ????????????????????#" """"##?????#??? | | ?????????????????????""" """#?????????? | | ?????????????????????? ""##?????????? | | ??????????????????????"" """#???????????? | +----------------------------------------------------+ Best States ------------- Heat Dissipation 25 Energy Generation 12 Energy Capacity 265 Matter Stores 300 Matter Capacity 300 Sight Range 16 Terrain Scan Density 10 Armor Coverage 150 Evasion (%) 40 Recoil Reduction 2 Item Schematics ----------------- None Robot Schematics ------------------ None Fabricated ------------ Nothing Alien Tech Used ----------------- None Achievements -------------- None Challenges ------------ None Game ------ Seed AntimissileNuclearModule Manual? 0 Play Time 00:12:05 Cumulative 188.2 hours Start 2020.12.26 @ 18:07:17 End 2020.12.26 @ 18:17:31 Sessions 1 Manual Loads 0 Difficulty Rogue Special Mode None Game No. 182 Rogue 175 Adventurer 0 Explorer 7 Win Type - Total 4 Types 0/0/4/0/0/0/0/0/0 Lore% 64 Gallery% 89 Achievement% 66 Wizard Run 0 Options --------- ASCII 0 Keyboard 0 Movement Mouse Keybinds 0 Fullscreen 1 Font 18/X11 Map View 76x50 Tactical HUD 1 Map Filters NONE Filters NONE Steam 1 RUN: 46054c78-915a-4e53-bb75-786e2b2aeff3